fUST/lending_fUST_20251002
["ID","MTS","AMOUNT","RATE_DAILY","PERIOD"]
[388829509,1759401045602,-151.0,0.00018907,2]
[388829510,1759401045612,-287.549803,0.00018907,2]
[388829511,1759401045621,-151.0,0.00018907,2]
[388829512,1759401045630,-154.248326,0.00018907,2]
[388829513,1759401045639,-151.0,0.00018907,2]
[388829514,1759401045648,-500.0,0.00018907,2]
[388829515,1759401045658,-444.98102932,0.00018907,2]
[388829526,1759401045924,-151.0,0.00018907,2]
[388829527,1759401045934,-47.22503031,0.00018907,2]
[388829536,1759401047233,-151.0,0.00018808,2]
[388829537,1759401047243,-1383.06128301,0.00018808,2]
[388829538,1759401050539,5000.0,0.00018777,2]
[388829539,1759401058364,1848.2033657,0.00018777,2]
[388829540,1759401058389,3151.7966343,0.00018777,2]
[388829541,1759401073749,5000.0,0.00018777,2]
[388829542,1759401096126,1848.2133657,0.00018777,2]
[388829543,1759401096149,3151.7866343,0.00018777,2]
[388829544,1759401108597,6848.2233657,0.00018707,2]
[388829545,1759401108619,10000.01,0.00018707,2]
[388829546,1759401108641,10000.01,0.00018707,2]
[388829547,1759401108912,10000.01,0.00018707,2]
[388829548,1759401108936,10000.01,0.00018707,2]
[388829549,1759401108958,10000.01,0.00018707,2]
[388829550,1759401108979,10000.01,0.00018707,2]
[388829551,1759401109001,10000.01,0.00018707,2]
[388829552,1759401109023,10000.01,0.00018707,2]
[388829553,1759401109044,10000.01,0.00018707,2]
[388829554,1759401120800,-5000.0,0.0001852,2]
[388829555,1759401121070,-1489.13415215,0.00018707,2]
[388829556,1759401121168,-10000.01,0.00018707,2]
[388829557,1759401121306,-10000.01,0.00018707,2]
[388829558,1759401121452,-10000.01,0.00018707,2]
[388829559,1759401121993,-10000.01,0.00018707,2]
[388829560,1759401122109,-10000.01,0.00018707,2]
[388829561,1759401122150,-10000.01,0.00018707,2]
[388829562,1759401122276,-10000.01,0.00018707,2]
[388829563,1759401123426,-300.0,0.00018706,2]
[388829564,1759401123472,-9400.01,0.00018707,2]
[388829565,1759401123534,-10000.01,0.00018707,2]
[388829566,1759401123836,-10000.01,0.00018707,2]
[388829567,1759401127276,-2229.5387948,0.00018519,2]
[388829568,1759401127322,-5540.9324104,0.00018707,2]
[388829569,1759401131540,-10000.01,0.00018707,2]
[388829570,1759401142314,5000.0,0.00018578,2]
[388829571,1759401150134,5000.0,0.00018578,2]
[388829572,1759401159863,-500.0,0.00018706,2]
[388829573,1759401165993,2824.27250244,0.00018678,2]
[388829574,1759401174188,5000.0,0.00018678,2]
[388829575,1759401180982,-300.0,0.000187,2]
[388829576,1759401183770,-300.0,0.00018705,2]
[388829577,1759401190492,167.517736,8.941e-05,2]
[388829578,1759401190666,167.517736,0.00011921,2]
[388829579,1759401190864,167.517736,0.00014902,2]
[388829580,1759401191081,167.517736,0.00017882,2]
[388829584,1759401191914,-300.0,0.000187,2]
[388829595,1759401195501,-415.82965517,0.00018706,2]
[388829596,1759401195530,-500.0,0.00018706,2]
[388829597,1759401195556,-108.53344682,0.00018706,2]
[388829598,1759401197688,5000.0,0.00018678,2]
[388829599,1759401205103,-500.76303373,0.00018697,3]
[388829600,1759401207444,1855.0677314,0.00017782,2]
[388829601,1759401259501,244.170624,0.00017706,2]
[388829602,1759401286698,1488.1999155,0.00017706,2]
[388829603,1759401293905,-3863.37054996,0.00018513,2]
[388829604,1759401321099,775.06842738,0.00027397,120]
[388829605,1759401391634,500.0,0.00024,120]
[388829606,1759401392811,500.0,0.00024,120]
[388829607,1759401393917,500.0,0.00024,120]
[388829608,1759401394760,500.0,0.00024,120]
[388829609,1759401395617,500.0,0.00024,120]
[388829610,1759401396446,500.0,0.00024,120]
[388829611,1759401397299,500.0,0.00024,120]
[388829612,1759401398046,500.0,0.00024,120]
[388829613,1759401398901,500.0,0.00024,120]
[388829614,1759401399714,500.0,0.00024,120]
[388829615,1759401400803,500.0,0.00024,120]
[388829616,1759401401644,500.0,0.00024,120]
[388829617,1759401402466,500.0,0.00024,120]
[388829618,1759401403435,500.0,0.00024,120]
[388829619,1759401404127,500.0,0.00024,120]
[388829620,1759401406337,500.0,0.00024,120]
[388829621,1759401407549,500.0,0.00024,120]
[388829622,1759401408318,500.0,0.00024,120]
[388829623,1759401408424,794.0,0.0002191,120]
[388829624,1759401408878,794.0,0.000219,120]
[388829625,1759401409092,500.0,0.00024,120]
[388829626,1759401409585,794.0,0.0002189,120]
[388829627,1759401410025,794.0,0.0002487,120]
[388829628,1759401410182,500.0,0.00024,120]
[388829629,1759401410467,794.0,0.0002486,120]
[388829630,1759401410927,794.0,0.0002485,120]
[388829631,1759401411003,595.51,0.00024,120]
[388829632,1759401475225,800.0,0.0002876,120]
[388829633,1759401479930,450.43,0.00015225,2]
[388829634,1759401480152,450.43,0.00015225,3]
[388829635,1759401480414,450.42,0.00015225,2]
[388829636,1759401484329,-500.0,0.000186,2]
[388829637,1759401496924,600.0,0.0002876,120]
[388829638,1759401513659,152.0,0.00024,120]
[388829639,1759401515182,152.0,0.000256,120]
[388829640,1759401516559,152.0,0.000271,120]
[388829641,1759401517954,152.0,0.000287,120]
[388829642,1759401527977,152.0,0.0002191,120]
[388829643,1759401528416,152.0,0.000219,120]
[388829644,1759401528857,152.0,0.0002189,120]
[388829645,1759401529290,152.0,0.0002488,120]
[388829646,1759401529798,152.0,0.0002487,120]
[388829647,1759401530206,152.0,0.0002486,120]
[388829648,1759401541373,500.0,0.00024,120]
[388829649,1759401625813,500.0,0.00027397,120]
[388829650,1759401628498,642.0,0.00024933,120]
[388829651,1759401629732,642.0,0.0002618,120]
[388829652,1759401630987,642.0,0.00027489,120]
[388829653,1759401703909,550.0,0.000273,120]
[388829654,1759401715898,360.07644181,0.00026,60]
[388829655,1759401769288,318.0,0.0002199,120]
[388829656,1759401769332,150.5,0.0002199,120]
[388829657,1759401769774,318.0,0.0002198,120]
[388829658,1759401769818,150.5,0.0002198,120]
[388829659,1759401770215,318.0,0.0002197,120]
[388829660,1759401770248,150.5,0.0002197,120]
[388829661,1759401770671,318.0,0.0002488,120]
[388829662,1759401770713,162.9,0.0002488,120]
[388829663,1759401771123,318.0,0.0002487,120]
[388829664,1759401771570,318.0,0.0002486,120]
[388829665,1759401775796,290.7050387,0.00017703,2]
[388829666,1759401785348,-1937.15001316,0.00018673,2]
[388829667,1759401798702,181.0390464,0.00017847,2]
[388829668,1759401868109,1127.01523529,0.00018606,2]
[388829669,1759401932075,385.0,0.00025035,120]
[388829670,1759401933342,385.0,0.00026286,120]
[388829671,1759401934627,385.0,0.00027601,120]
[388829672,1759401942531,500.0,0.00027397,120]
[388829674,1759401973733,1549.72001052,0.00018673,2]
[388829675,1759402007366,1000.0,0.00028767,120]
[388829676,1759402014646,1000.0,0.00028767,120]
[388829677,1759402021503,1000.0,0.00028767,120]
[388829678,1759402028614,1000.0,0.00028767,120]
[388829679,1759402037013,1000.0,0.00028767,120]
[388829680,1759402046655,1000.0,0.00028767,120]
[388829681,1759402049803,1000.0,0.00025,30]
[388829682,1759402051693,151.0,0.00025999,60]
[388829683,1759402076368,1000.0,0.00028767,120]
[388829684,1759402087436,-468.98,0.00018697,3]
[388829685,1759402087465,-234.49,0.00018697,3]
[388829686,1759402087493,-703.47,0.00018697,3]
[388829687,1759402087527,-300.0,0.00018699,2]
[388829688,1759402087554,-300.0,0.000187,2]
[388829689,1759402087581,-199.79941083,0.000187,2]
[388829690,1759402087608,-500.0,0.000187,2]
[388829691,1759402087635,-1200.0,0.000187,2]
[388829692,1759402087664,-986.53117834,0.00018701,2]
[388829693,1759402088007,-213.46882166,0.00018701,2]
[388829694,1759402088655,-1792.45840099,0.00018702,2]
[388829695,1759402088772,-10000.01,0.00018702,2]
[388829696,1759402088982,-10000.01,0.00018702,2]
[388829697,1759402089005,-10000.01,0.00018702,2]
[388829698,1759402091321,-10000.01,0.00018702,2]
[388829699,1759402091458,-1792.50840099,0.00018702,2]
[388829700,1759402091482,-6414.99319802,0.00018702,2]
[388829701,1759402091610,-300.0,0.00018702,2]
[388829702,1759402091639,-238.0,0.00018702,2]
[388829703,1759402091667,-300.0,0.00018702,2]
[388829704,1759402091701,-63.74996078,0.00018706,2]
[388829705,1759402091731,-500.0,0.00018706,2]
[388829706,1759402091760,-500.0,0.00018706,2]
[388829707,1759402091788,-500.0,0.00018706,2]
[388829708,1759402091818,-500.0,0.00018706,2]
[388829709,1759402091847,-473.56035228,0.00018706,2]
[388829710,1759402091874,-309.79075453,0.00018706,2]
[388829711,1759402091903,-210.80048502,0.00018706,2]
[388829712,1759402091931,-500.0,0.00018706,2]
[388829713,1759402091960,-217.30990242,0.00018706,2]
[388829714,1759402092210,-773.58708994,0.00018707,2]
[388829715,1759402092241,-10000.01,0.00018707,2]
[388829716,1759402092434,1000.00298,0.00028767,120]
[388829717,1759402093340,-10000.01,0.00018707,2]
[388829718,1759402093461,-10000.01,0.00018707,2]
[388829719,1759402093588,-10000.01,0.00018707,2]
[388829720,1759402093732,-10000.01,0.00018707,2]
[388829721,1759402097373,-10000.01,0.00018707,2]
[388829722,1759402101416,-10000.01,0.00018707,2]
[388829723,1759402104538,5000.0,0.0001852,2]
[388829724,1759402112825,5000.0,0.00018578,2]
[388829725,1759402121094,0.01,0.00018578,2]
[388829726,1759402121114,4999.99,0.00018578,2]
[388829727,1759402129030,5000.0,0.00018578,2]
[388829728,1759402129096,150.5,0.0002191,120]
[388829729,1759402129545,150.5,0.000219,120]
[388829730,1759402129992,150.5,0.0002189,120]
[388829731,1759402130444,150.5,0.0002487,120]
[388829732,1759402130882,150.5,0.0002486,120]
[388829733,1759402131445,150.5,0.0002485,120]
[388829734,1759402137395,0.02,0.00018578,2]
[388829735,1759402137416,4999.98,0.00018578,2]
[388829736,1759402139604,195.336499,0.0001787,2]
[388829737,1759402152729,5000.0,0.00018578,2]
[388829738,1759402153381,1000.0,0.00028767,120]
[388829739,1759402160685,4804.673501,0.00018578,2]
[388829740,1759402160706,195.326499,0.00018578,2]
[388829741,1759402176400,4940.18287583,0.00018578,2]
[388829742,1759402184303,4864.50062517,0.00018578,2]
[388829743,1759402184327,135.49937483,0.00018578,2]
[388829744,1759402190934,1000.0,0.00028767,120]
[388829745,1759402199798,5000.0,0.00018578,2]
[388829746,1759402207870,4864.51062517,0.00018578,2]
[388829747,1759402207893,135.48937483,0.00018578,2]
[388829750,1759402222916,5000.0,0.00018678,2]
[388829751,1759402230852,5000.0,0.00018678,2]
[388829752,1759402231779,171.0,0.00027498,120]
[388829784,1759402232277,-300.0,0.00018706,2]
[388829786,1759402232287,-300.0,0.00018706,2]
[388829788,1759402232296,-198.62725371,0.00018706,2]
[388829798,1759402232382,-1001.37274629,0.00018706,2]
[388829800,1759402232391,-162.46040084,0.00018707,2]
[388830014,1759402241981,-2252.75,0.00018707,2]
[388830024,1759402243503,-65139.15546793,0.00018707,2]
[388830132,1759402246482,-502.0,0.00018707,2]
[388830133,1759402246493,-14842.5,0.00018707,2]
[388830135,1759402246513,-1997.32485531,0.00018707,2]
[388830138,1759402246537,-1051.66225773,0.00018707,2]
[388830139,1759402246547,-190.81221138,0.00018772,2]
[388830140,1759402246556,-500.0,0.00018773,2]
[388830142,1759402246565,-523.75132116,0.00018773,2]
[388830143,1759402246574,-500.0,0.00018773,2]
[388830144,1759402246583,-503.31128271,0.00018773,2]
[388830145,1759402246592,-500.0,0.00018773,2]
[388830146,1759402246602,-500.0,0.00018773,2]
[388830147,1759402246612,-500.0,0.00018773,2]
[388830148,1759402246621,-503.54343392,0.00018773,2]
[388830149,1759402246631,-500.0,0.00018773,2]
[388830150,1759402246641,-617.66842259,0.00018773,2]
[388830151,1759402246650,-572.08826976,0.00018773,2]
[388830152,1759402246659,-494.33043279,0.00018773,2]
[388830153,1759402246671,-7.0914984,0.00018773,2]
[388830154,1759402246680,-500.0,0.00018773,2]
[388830155,1759402246689,-504.6217567,0.00018773,2]
[388830156,1759402246699,-175.62154568,0.00018773,2]
[388830157,1759402246720,-324.37845432,0.00018773,2]
[388830158,1759402246729,-500.58319121,0.00018773,2]
[388830159,1759402246738,-500.0,0.00018773,2]
[388830160,1759402246747,-500.0,0.00018773,2]
[388830161,1759402246757,-500.0,0.00018773,2]
[388830162,1759402246766,-500.0,0.00018773,2]
[388830163,1759402246775,-270.43324171,0.00018773,2]
[388830164,1759402246786,-1281.71730776,0.00018773,2]
[388830165,1759402246795,-321.08,0.00018773,2]
[388830166,1759402246804,-151.0,0.00018773,2]
[388830167,1759402246814,-151.0,0.00018773,2]
[388830168,1759402246825,-1103.0,0.00018773,2]
[388830169,1759402246834,-151.46683434,0.00018773,2]
[388830170,1759402246843,-151.0,0.00018773,2]
[388830171,1759402246857,-500.0,0.00018773,2]
[388830172,1759402246866,-151.0,0.00018773,2]
[388830173,1759402246876,-500.0,0.00018773,2]
[388830174,1759402246885,-151.0,0.00018773,2]
[388830175,1759402246894,-151.0,0.00018773,2]
[388830176,1759402246903,-500.0,0.00018773,2]
[388830177,1759402246912,-158.93215069,0.00018773,2]
[388830178,1759402246921,-500.0,0.00018773,2]
[388830179,1759402246931,-230.86296119,0.00018773,2]
[388830180,1759402246940,-151.0,0.00018773,2]
[388830181,1759402246949,-48.83391644,0.00018773,2]
[388830182,1759402246961,-102.34255388,0.00018773,2]
[388830183,1759402246970,-151.0,0.00018773,2]
[388830184,1759402246979,-151.0,0.00018773,2]
[388830185,1759402246988,-500.0,0.00018773,2]
[388830186,1759402246997,-151.0,0.00018773,2]
[388830187,1759402247007,-500.0,0.00018773,2]
[388830188,1759402247016,-151.0,0.00018773,2]
[388830189,1759402247025,-500.0,0.00018773,2]
[388830190,1759402247034,-151.0,0.00018773,2]
[388830191,1759402247043,-151.0,0.00018773,2]
[388830192,1759402247052,-264.30869818,0.00018773,2]
[388830193,1759402247062,-151.0,0.00018773,2]
[388830194,1759402247071,-151.0,0.00018773,2]
[388830195,1759402247080,-151.0,0.00018773,2]
[388830196,1759402247089,-151.0,0.00018773,2]
[388830197,1759402247098,-500.0,0.00018773,2]
[388830198,1759402247107,-500.0,0.00018773,2]
[388830199,1759402247116,-3175.63335447,0.000188,2]
[388830200,1759402247127,-988.1001326,0.000188,2]
[388830201,1759402247366,0.01,0.00018678,2]
[388830202,1759402247387,4999.99,0.00018678,2]
[388830203,1759402255170,5000.0,0.00018678,2]
[388830204,1759402256558,500.0,0.00027397,120]
[388830205,1759402270973,0.02,0.00018678,2]
[388830206,1759402271007,4999.98,0.00018678,2]
[388830207,1759402300157,1000.0,0.00028767,120]
[388830208,1759402300765,5000.0,0.00018678,2]
[388830209,1759402306811,1000.0,0.00028767,120]
[388830210,1759402313143,1000.0,0.00028767,120]
[388830211,1759402316253,0.03,0.00018678,2]
[388830212,1759402316276,4999.97,0.00018678,2]
[388830213,1759402319872,1000.0,0.00028767,120]
[388830214,1759402324175,5000.0,0.00018678,2]
[388830215,1759402332698,1000.0,0.00028767,120]
[388830216,1759402338750,1000.0,0.00028767,120]
[388830217,1759402342433,-313.19364627,0.00018772,2]
[388830218,1759402342456,-186.80635373,0.00018772,2]
[388830219,1759402346857,5000.0,0.00018678,2]
[388830220,1759402346888,1000.0,0.00026117,120]
[388830221,1759402352914,1000.0,0.00028767,120]
[388830222,1759402369889,0.01,0.00018678,2]
[388830223,1759402369913,4999.99,0.00018678,2]
[388830224,1759402381836,-385.63672875,0.00018704,7]
[388830225,1759402385507,786.63915593,0.00018678,2]
[388830226,1759402393641,2852.75435742,0.00018678,2]
[388830227,1759402406968,-100.84243545,0.00018704,7]
[388830228,1759402406994,-199.15756455,0.00018707,2]
[388830229,1759402408946,4273.17796824,0.00018678,2]
[388830230,1759402415540,-300.0,0.00018697,3]
[388830231,1759402431787,2087.43851841,0.00018678,2]
[388830232,1759402431809,2147.32163529,0.00018678,2]
[388830233,1759402432907,-300.0,0.00018697,3]
[388830234,1759402440151,-103.47,0.00018697,3]
[388830235,1759402440171,-196.53,0.000187,2]
[388830236,1759402444049,-300.0,0.00018697,2]
[388830237,1759402449724,-300.0,0.00018697,2]
[388830238,1759402451721,170.79872179,0.000186,2]
[388830239,1759402454688,2841.99050459,0.00018678,2]
[388830240,1759402488957,150.5,0.0002191,120]
[388830241,1759402489435,221.72,0.000219,120]
[388830243,1759402497676,-302.8183302,0.00018697,3]
[388830244,1759402502009,-300.0,0.00018697,2]
[388830245,1759402507412,-121.83880471,0.00018697,2]
[388830246,1759402507436,-178.16119529,0.00018697,3]
[388830247,1759402511698,-222.49047451,0.00018697,3]
[388830248,1759402511721,-77.50952549,0.000187,2]
[388830249,1759402514899,-222.49047451,0.000187,2]
[388830250,1759402514921,-128.5765979,0.000187,2]
[388830251,1759402517467,-171.4234021,0.000187,2]
[388830252,1759402517501,-128.5765979,0.00018706,2]
[388830253,1759402519826,-171.4234021,0.00018706,2]
[388830254,1759402519847,-131.36467047,0.00018706,2]
[388830255,1759402521686,-300.0,0.000187,2]
[388830256,1759402530634,171.0,0.00028665,120]
[388830257,1759402533366,-300.0,0.000187,2]
[388830258,1759402543615,-300.0,0.000187,2]
[388830259,1759402556004,2910.78695447,0.00018678,2]
[388830260,1759402563878,314.51561568,0.00018678,2]
[388830261,1759402564612,-300.0,0.000187,2]
[388830262,1759402564635,-2.8183302,0.00018706,2]
[388830263,1759402566282,-165.81699933,0.00018706,2]
[388830264,1759402566305,-136.60845281,0.00018706,2]
[388830265,1759402570002,500.0,0.00027397,120]
[388830266,1759402570129,-300.0,0.000187,2]
[388830267,1759402572022,-200.04062768,0.00018706,2]
[388830268,1759402573131,-473.7240954,0.00018706,2]
[388830269,1759402574609,467.32286474,0.00018632,2]
[388830270,1759402586814,1147.27370344,0.00018678,2]
[388830271,1759402586837,3353.98612666,0.00018678,2]
[388830272,1759402594768,727.68118514,0.00018678,2]
[388830273,1759402659495,2282.50786152,0.00018673,2]
[388830274,1759402677351,596.42285989,0.00018631,2]
[388830275,1759402685238,666.0,0.00017756,2]
[388830276,1759402697286,1618.90390982,0.00018678,2]
[388830277,1759402724100,165.04515382,0.000186,2]
[388830278,1759402884561,500.0,0.00027397,120]
[388830279,1759402892273,500.0,0.00028767,120]
[388830280,1759402896494,-166.0,0.00018696,2]
[388830281,1759402896525,-300.0,0.000187,2]
[388830282,1759402896554,-300.0,0.000187,2]
[388830283,1759402896582,-300.0,0.000187,2]
[388830284,1759402896611,-1200.0,0.00018705,2]
[388830285,1759402896641,-300.0,0.00018705,2]
[388830286,1759402896670,-1200.0,0.00018706,2]
[388830287,1759402896698,-209.77913156,0.00018706,2]
[388830288,1759402896728,-544.14572475,0.00018706,2]
[388830289,1759402896757,-460.16028738,0.00018706,2]
[388830290,1759402897000,-39.83971262,0.00018706,2]
[388830291,1759402897028,-303.26048458,0.00018706,2]
[388830292,1759402901488,300.0,0.00028767,120]
[388830293,1759402915092,320.865,0.00028767,120]
[388830294,1759402915858,5000.0,0.00018707,2]
[388830295,1759402922620,300.0,0.00018706,2]
[388830296,1759402923852,4013.8096056,0.00018707,2]
[388830297,1759402923874,986.1903944,0.00018707,2]
[388830298,1759402941000,1200.0,0.00018706,2]
[388830299,1759402982319,300.0,0.00018706,2]
[388830300,1759402999814,1826.0062892,0.00018673,2]
[388830301,1759403042420,300.0,0.00018706,2]
[388830302,1759403089531,151.0,0.000183,2]
[388830303,1759403089825,151.0,0.000175,2]
[388830304,1759403090222,151.0,0.000166,2]
[388830305,1759403102199,300.0,0.00018706,2]
[388830306,1759403102531,1200.0,0.00018706,2]
[388830307,1759403108446,272.0,0.00018707,2]
[388830308,1759403111096,195.336499,0.00017808,2]
[388830309,1759403115661,2967.4768174,0.00018707,2]
[388830310,1759403115683,2032.5231826,0.00018707,2]
[388830311,1759403123949,4300.59693244,0.00018707,2]
[388830318,1759403138944,2660.0,0.00018578,2]
[388830319,1759403179177,545.17445174,0.00018408,2]
[388830320,1759403195473,500.0,0.00027397,120]
[388830321,1759403198976,1300.0,0.000284,120]
[388830322,1759403220344,258.84,0.00027397,120]
[388830323,1759403260335,2100.0,0.000184,2]
[388830324,1759403277883,2100.0,0.000284,120]
[388830325,1759403283445,315.3,0.00015225,2]
[388830326,1759403283746,315.3,0.00015225,2]
[388830327,1759403284027,315.29,0.00015225,2]
[388830328,1759403285110,199.40374989,0.00018283,2]
[388830329,1759403287310,238.0085973,0.00018408,2]
[388830330,1759403338873,1400.0,0.000284,120]
[388830331,1759403377830,2031.0,0.000284,120]
[388830333,1759403426878,-157.83828369,0.000186,2]
[388830373,1759403432637,-2643.14756872,0.00018633,2]
[388830374,1759403432646,-1021.83880471,0.00018697,2]
[388830375,1759403432657,-234.49,0.00018697,3]
[388830376,1759403432668,-703.47,0.00018697,3]
[388830377,1759403432677,-1200.0,0.00018705,2]
[388830378,1759403432686,-1200.0,0.00018706,2]
[388830379,1759403432695,-300.0,0.00018706,2]
[388830380,1759403432705,-300.0,0.00018706,2]
[388830381,1759403432714,-313.19364627,0.00018706,2]
[388830382,1759403432723,-234.60248693,0.00018706,2]
[388830383,1759403432733,-60049.10051191,0.00018707,2]
[388830384,1759403432757,-18902.63666279,0.00018707,2]
[388830408,1759403438449,-3049.0,0.00018707,2]
[388830457,1759403440456,-4909.19599996,0.00018707,2]
[388830522,1759403441259,-6821.29721129,0.00018707,2]
[388830592,1759403443631,-86731.07366745,0.00018707,2]
[388830593,1759403443643,-148481.8034738,0.00018707,2]
[388830620,1759403446531,-840.01244023,0.00018707,2]
[388830621,1759403446680,-999.306618,0.00018707,2]
[388830623,1759403494629,265.534083,0.00017776,2]
[388830624,1759403507255,500.0,0.00027397,120]
[388830625,1759403523888,-300.0,0.00018706,2]
[388830626,1759403542263,-953.0,0.00018706,2]
[388830628,1759403553945,207.0238132,0.00017794,2]
[388830629,1759403571852,-486.4791642,0.00018706,7]
[388830630,1759403584451,-300.0,0.00018706,2]
[388830631,1759403643676,-300.0,0.00018706,2]
[388830632,1759403656857,278.1890197,0.00017776,2]
[388830633,1759403685093,-2114.51805496,0.000187,2]
[388830634,1759403702866,-300.0,0.00018706,2]
[388830635,1759403706642,-5440.88137421,0.00018633,2]
[388830636,1759403728830,-8381.61995652,0.00018633,2]
[388830637,1759403729004,-10000.01,0.00018633,2]
[388830638,1759403729178,-10000.01,0.00018633,2]
[388830639,1759403729304,-10000.01,0.00018633,2]
[388830640,1759403729422,-10000.01,0.00018633,2]
[388830641,1759403729566,-10000.01,0.00018633,2]
[388830642,1759403729684,-10000.01,0.00018633,2]
[388830643,1759403729801,-10000.01,0.00018633,2]
[388830644,1759403730000,-10000.01,0.00018633,2]
[388830645,1759403730104,-10000.01,0.00018633,2]
[388830646,1759403737528,-10000.01,0.00018633,2]
[388830647,1759403737709,-10000.01,0.00018633,2]
[388830648,1759403737869,-10000.01,0.00018633,2]
[388830649,1759403738090,-10000.01,0.00018633,2]
[388830650,1759403738500,-10000.01,0.00018633,2]
[388830651,1759403738514,-10000.01,0.00018633,2]
[388830652,1759403738622,-10000.01,0.00018633,2]
[388830653,1759403738768,-10000.01,0.00018633,2]
[388830654,1759403738899,-10000.01,0.00018633,2]
[388830655,1759403739228,-10000.01,0.00018633,2]
[388830656,1759403744701,-10000.01,0.00018633,2]
[388830657,1759403744840,-10000.01,0.00018633,2]
[388830658,1759403744945,-10000.01,0.00018633,2]
[388830659,1759403745060,-10000.01,0.00018633,2]
[388830660,1759403745220,-10000.01,0.00018633,2]
[388830661,1759403745352,-10000.01,0.00018633,2]
[388830662,1759403745470,-10000.01,0.00018633,2]
[388830663,1759403745581,-10000.01,0.00018633,2]
[388830664,1759403745697,-10000.01,0.00018633,2]
[388830665,1759403745813,-10000.01,0.00018633,2]
[388830666,1759403752379,-3000.0,0.00019063,7]
[388830667,1759403753499,-3000.0,0.00019063,7]
[388830668,1759403755984,-3000.0,0.00019063,7]
[388830669,1759403756233,-5000.0,0.00018447,2]
[388830670,1759403756261,-7900.0,0.00018633,2]
[388830671,1759403757506,5000.0,0.00018138,2]
[388830672,1759403758924,-10000.01,0.00018633,2]
[388830673,1759403759672,-10000.01,0.00018633,2]
[388830674,1759403760056,-10000.01,0.00018633,2]
[388830675,1759403760090,-10000.01,0.00018633,2]
[388830676,1759403760104,-10000.01,0.00018633,2]
[388830677,1759403760210,-8277.15866927,0.00018633,2]
[388830678,1759403761119,-300.0,0.00019063,7]
[388830679,1759403762384,300.0,0.00018632,2]
[388830680,1759403765877,5000.0,0.00018633,2]
[388830681,1759403773958,4700.01,0.00018633,2]
[388830682,1759403773980,299.99,0.00018633,2]
[388830683,1759403778796,-310.0,0.00019063,7]
[388830684,1759403786929,939.07391395,0.00018393,2]
[388830685,1759403790028,5000.0,0.00018578,2]
[388830686,1759403798419,4060.93608605,0.00018578,2]
[388830687,1759403798441,939.06391395,0.00018578,2]
[388830688,1759403805352,-5000.0,0.00019063,7]
[388830689,1759403806748,-5000.0,0.00019063,7]
[388830690,1759403813540,4860.52482557,0.00018578,2]
[388830691,1759403816888,500.0,0.00027397,120]
[388830692,1759403821710,4200.42126048,0.00018578,2]
[388830693,1759403821734,799.57873952,0.00018578,2]
[388830694,1759403826498,1000.0,0.00028767,120]
[388830695,1759403844048,5000.0,0.00018578,2]
[388830696,1759403846825,4200.43126048,0.00018082,2]
[388830697,1759403846847,841.09733492,0.00018082,2]